fUSD/lending_fUSD_20240324
["ID","MTS","AMOUNT","RATE_DAILY","PERIOD"]
[320305649,1711281074312,-500.0,0.00019726,2]
[320305650,1711281074322,-500.0,0.00019726,2]
[320305651,1711281074332,-500.0,0.00019726,2]
[320305652,1711281074341,-242.78,0.00019726,2]
[320305653,1711281074356,-500.0,0.00019726,2]
[320305654,1711281074367,-500.0,0.00019726,2]
[320305655,1711281074377,-800.15,0.00019726,2]
[320305656,1711281074387,-500.0,0.00019726,2]
[320305657,1711281074399,-500.0,0.00019726,2]
[320305658,1711281074409,-697.8,0.00019726,2]
[320305659,1711281074419,-500.0,0.00019726,2]
[320305660,1711281074430,-500.0,0.00019726,2]
[320305661,1711281074440,-500.0,0.00019726,2]
[320305662,1711281074450,-500.0,0.00019726,2]
[320305663,1711281074460,-500.0,0.00019726,2]
[320305664,1711281074478,-389.88,0.00019726,2]
[320305665,1711281074493,-5318.27,0.00019726,2]
[320305666,1711281074503,-500.0,0.00019726,2]
[320305667,1711281074514,-500.0,0.00019726,2]
[320305668,1711281074525,-500.0,0.00019726,2]
[320305669,1711281074539,-500.0,0.00019726,2]
[320305670,1711281074550,-500.0,0.00019726,2]
[320305671,1711281074568,-504.77416829,0.00019726,2]
[320305672,1711281074580,-500.0,0.00019726,2]
[320305673,1711281074592,-500.0,0.00019726,2]
[320305674,1711281074603,-500.0,0.00019726,2]
[320305675,1711281074615,-500.0,0.00019726,2]
[320305676,1711281074628,-511.38604359,0.00019726,2]
[320305677,1711281074639,-500.0,0.00019726,2]
[320305678,1711281074650,-500.0,0.00019726,2]
[320305679,1711281074660,-500.0,0.00019726,2]
[320305680,1711281074676,-1619.89,0.00019726,2]
[320305681,1711281074698,-500.0,0.00019726,2]
[320305682,1711281074712,-500.0,0.00019726,2]
[320305683,1711281074736,-500.0,0.00019726,2]
[320305684,1711281074764,-501.35121454,0.00019726,2]
[320305685,1711281074776,-500.0,0.00019726,2]
[320305686,1711281074786,-500.0,0.00019726,2]
[320305687,1711281074804,-1875.89,0.00019726,2]
[320305688,1711281074814,-500.0,0.00019726,2]
[320305689,1711281074824,-500.0,0.00019726,2]
[320305690,1711281074835,-500.0,0.00019726,2]
[320305691,1711281074845,-500.0,0.00019726,2]
[320305692,1711281074855,-500.0,0.00019726,2]
[320305693,1711281074871,-500.0,0.00019726,2]
[320305694,1711281074882,-594.35,0.00019726,2]
[320305695,1711281074892,-500.0,0.00019726,2]
[320305696,1711281074902,-571.88,0.00019726,2]
[320305697,1711281074912,-500.0,0.00019726,2]
[320305698,1711281074922,-500.0,0.00019726,2]
[320305699,1711281074932,-500.0,0.00019726,2]
[320305700,1711281074943,-500.0,0.00019726,2]
[320305701,1711281074953,-516.94546932,0.00019726,2]
[320305702,1711281074963,-572.75096507,0.00019726,2]
[320305703,1711281074973,-500.0,0.00019726,2]
[320305704,1711281074983,-500.0,0.00019726,2]
[320305705,1711281074994,-500.0,0.00019726,2]
[320305706,1711281075004,-500.0,0.00019726,2]
[320305707,1711281075014,-500.0,0.00019726,2]
[320305708,1711281075023,-500.0,0.00019726,2]
[320305709,1711281075034,-500.0,0.00019726,2]
[320305710,1711281075044,-508.4798159,0.00019726,2]
[320305711,1711281075054,-665.69,0.00019726,2]
[320305712,1711281075065,-505.30749385,0.00019726,2]
[320305713,1711281075074,-500.0,0.00019726,2]
[320305714,1711281075084,-500.0,0.00019726,2]
[320305715,1711281075095,-500.0,0.00019726,2]
[320305716,1711281075104,-500.0,0.00019726,2]
[320305717,1711281075114,-500.0,0.00019726,2]
[320305718,1711281075125,-500.0,0.00019726,2]
[320305719,1711281075135,-500.0,0.00019726,2]
[320305720,1711281075145,-500.0,0.00019726,2]
[320305721,1711281075155,-500.0,0.00019726,2]
[320305722,1711281075165,-500.0,0.00019726,2]
[320305723,1711281075174,-500.0,0.00019726,2]
[320305724,1711281075185,-730.44,0.00019726,2]
[320305725,1711281075195,-500.0,0.00019726,2]
[320305726,1711281075205,-500.0,0.00019726,2]
[320305727,1711281075215,-500.0,0.00019726,2]
[320305728,1711281075224,-500.0,0.00019726,2]
[320305729,1711281075233,-509.40115583,0.00019726,2]
[320305730,1711281075243,-500.0,0.00019726,2]
[320305731,1711281075252,-3100.62,0.00019726,2]
[320305732,1711281075262,-500.0,0.00019726,2]
[320305733,1711281075271,-529.46,0.00019726,2]
[320305734,1711281075281,-500.0,0.00019726,2]
[320305735,1711281075290,-2026.72,0.00019726,2]
[320305736,1711281075300,-500.0,0.00019726,2]
[320305737,1711281075309,-500.0,0.00019726,2]
[320305738,1711281075319,-500.0,0.00019726,2]
[320305739,1711281075329,-500.0,0.00019726,2]
[320305740,1711281075339,-500.0,0.00019726,2]
[320305741,1711281075353,-500.0,0.00019726,2]
[320305742,1711281075364,-500.0,0.00019726,2]
[320305743,1711281075374,-500.0,0.00019726,2]
[320305744,1711281075384,-500.0,0.00019726,2]
[320305745,1711281075394,-500.0,0.00019726,2]
[320305746,1711281075405,-500.0,0.00019726,2]
[320305747,1711281075415,-752.54,0.00019726,2]
[320305748,1711281075426,-500.0,0.00019726,2]
[320305749,1711281075438,-500.0,0.00019726,2]
[320305750,1711281075449,-500.0,0.00019726,2]
[320305751,1711281075459,-784.51,0.00019726,2]
[320305752,1711281075469,-503.27,0.00019726,2]
[320305753,1711281075480,-500.0,0.00019726,2]
[320305754,1711281075491,-500.0,0.00019726,2]
[320305755,1711281075501,-500.0,0.00019726,2]
[320305756,1711281075511,-500.0,0.00019726,2]
[320305757,1711281075521,-585.56,0.00019726,2]
[320305758,1711281075531,-500.0,0.00019726,2]
[320305759,1711281075541,-500.0,0.00019726,2]
[320305760,1711281075551,-500.0,0.00019726,2]
[320305761,1711281075561,-500.0,0.00019726,2]
[320305762,1711281075571,-1679.76,0.00019726,2]
[320305763,1711281075581,-500.0,0.00019726,2]
[320305764,1711281075590,-983.47,0.00019726,2]
[320305765,1711281075600,-500.0,0.00019726,2]
[320305766,1711281075611,-500.0,0.00019726,2]
[320305767,1711281075621,-500.0,0.00019726,2]
[320305768,1711281075631,-500.0,0.00019726,2]
[320305769,1711281075643,-5543.31,0.00019726,2]
[320305770,1711281075652,-522.22,0.00019726,2]
[320305771,1711281075663,-500.0,0.00019726,2]
[320305772,1711281075673,-500.0,0.00019726,2]
[320305773,1711281075683,-500.0,0.00019726,2]
[320305774,1711281075693,-500.0,0.00019726,2]
[320305775,1711281075718,-500.0,0.00019726,2]
[320305776,1711281075728,-500.0,0.00019726,2]
[320305777,1711281075738,-500.0,0.00019726,2]
[320305778,1711281075748,-550.54,0.00019726,2]
[320305779,1711281075762,-1556.93,0.00019726,2]
[320305780,1711281075772,-858.82,0.00019726,2]
[320305781,1711281075782,-500.0,0.00019726,2]
[320305782,1711281075792,-500.0,0.00019726,2]
[320305783,1711281075801,-500.0,0.00019726,2]
[320305784,1711281075811,-500.0,0.00019726,2]
[320305785,1711281075821,-1683.0,0.00019726,2]
[320305786,1711281075831,-500.0,0.00019726,2]
[320305787,1711281075841,-500.0,0.00019726,2]
[320305788,1711281075851,-500.0,0.00019726,2]
[320305789,1711281075861,-521.82,0.00019726,2]
[320305790,1711281075871,-636.8,0.00019726,2]
[320305791,1711281075881,-500.0,0.00019726,2]
[320305792,1711281075891,-618.17,0.00019726,2]
[320305793,1711281075901,-500.0,0.00019726,2]
[320305794,1711281075911,-500.0,0.00019726,2]
[320305795,1711281075921,-500.0,0.00019726,2]
[320305796,1711281075932,-500.0,0.00019726,2]
[320305797,1711281076137,-2241.36,0.00019726,2]
[320305798,1711281076148,-500.0,0.00019726,2]
[320305799,1711281076158,-500.0,0.00019726,2]
[320305800,1711281076168,-501.52,0.00019726,2]
[320305801,1711281076178,-500.0,0.00019726,2]
[320305802,1711281076188,-824.85,0.00019726,2]
[320305803,1711281076197,-513.89028771,0.00019726,2]
[320305804,1711281076206,-500.0,0.00019726,2]
[320305805,1711281076216,-500.0,0.00019726,2]
[320305806,1711281076226,-500.0,0.00019726,2]
[320305807,1711281076235,-503.80796285,0.00019726,2]
[320305808,1711281076244,-500.0,0.00019726,2]
[320305809,1711281076254,-500.0,0.00019726,2]
[320305810,1711281076263,-500.0,0.00019726,2]
[320305811,1711281076272,-3242.11,0.00019726,2]
[320305812,1711281076281,-500.0,0.00019726,2]
[320305813,1711281076291,-518.831306,0.00019726,2]
[320305814,1711281076300,-601.55,0.00019726,2]
[320305815,1711281076309,-500.0,0.00019726,2]
[320305816,1711281076318,-500.0,0.00019726,2]
[320305817,1711281076327,-690.92,0.00019726,2]
[320305818,1711281076336,-916.59,0.00019726,2]
[320305819,1711281076346,-500.0,0.00019726,2]
[320305820,1711281076355,-2881.87,0.00019726,2]
[320305821,1711281076364,-1333.31,0.00019726,2]
[320305822,1711281076375,-500.0,0.00019726,2]
[320305823,1711281076386,-500.0,0.00019726,2]
[320305824,1711281076396,-1077.86,0.00019726,2]
[320305825,1711281076405,-500.0,0.00019726,2]
[320305826,1711281076414,-549.62040419,0.00019726,2]
[320305827,1711281076424,-506.6905954,0.00019726,2]
[320305828,1711281076434,-500.0,0.00019726,2]
[320305829,1711281076443,-500.0,0.00019726,2]
[320305830,1711281076453,-500.0,0.00019726,2]
[320305831,1711281076463,-650.56,0.00019726,2]
[320305832,1711281076473,-500.0,0.00019726,2]
[320305833,1711281076482,-500.0,0.00019726,2]
[320305834,1711281076491,-500.0,0.00019726,2]
[320305835,1711281076501,-500.0,0.00019726,2]
[320305836,1711281076511,-500.0,0.00019726,2]
[320305837,1711281076520,-632.35,0.00019726,2]
[320305838,1711281076529,-500.0,0.00019726,2]
[320305839,1711281076538,-500.0,0.00019726,2]
[320305840,1711281076548,-1500.47,0.00019726,2]
[320305841,1711281076557,-500.0,0.00019726,2]
[320305842,1711281076566,-506.87,0.00019726,2]
[320305843,1711281076576,-827.26,0.00019726,2]
[320305844,1711281076585,-500.0,0.00019726,2]
[320305845,1711281076594,-500.0,0.00019726,2]
[320305846,1711281076603,-3329.06,0.00019726,2]
[320305847,1711281076612,-617.0135281,0.00019726,2]
[320305848,1711281076622,-500.0,0.00019726,2]
[320305849,1711281076631,-500.0,0.00019726,2]
[320305850,1711281076641,-515.04557834,0.00019726,2]
[320305851,1711281076651,-500.0,0.00019726,2]
[320305852,1711281076661,-511.59966451,0.00019726,2]
[320305853,1711281076671,-500.0,0.00019726,2]
[320305854,1711281076681,-1171.65,0.00019726,2]
[320305855,1711281076692,-2669.28,0.00019726,2]
[320305856,1711281076702,-500.0,0.00019726,2]
[320305857,1711281076712,-500.0,0.00019726,2]
[320305858,1711281076722,-500.0,0.00019726,2]
[320305859,1711281076732,-722.38,0.00019726,2]
[320305860,1711281076741,-500.0,0.00019726,2]
[320305861,1711281076751,-500.0,0.00019726,2]
[320305862,1711281076761,-506.99709391,0.00019726,2]
[320305863,1711281076772,-500.0,0.00019726,2]
[320305864,1711281076782,-500.0,0.00019726,2]
[320305865,1711281076791,-507.48155128,0.00019726,2]
[320305866,1711281076800,-500.0,0.00019726,2]
[320305867,1711281076810,-500.0,0.00019726,2]
[320305868,1711281076819,-576.09,0.00019726,2]
[320305869,1711281076829,-500.0,0.00019726,2]
[320305870,1711281076838,-500.0,0.00019726,2]
[320305871,1711281076848,-500.0,0.00019726,2]
[320305872,1711281076858,-500.0,0.00019726,2]
[320305873,1711281076868,-2106.19,0.00019726,2]
[320305874,1711281076878,-500.0,0.00019726,2]
[320305875,1711281076888,-827.83,0.00019726,2]
[320305876,1711281076898,-500.0,0.00019726,2]
[320305877,1711281076907,-500.0,0.00019726,2]
[320305878,1711281076916,-500.0,0.00019726,2]
[320305879,1711281076926,-500.0,0.00019726,2]
[320305880,1711281076935,-500.0,0.00019726,2]
[320305881,1711281076945,-500.0,0.00019726,2]
[320305882,1711281076954,-507.22207346,0.00019726,2]
[320305883,1711281076963,-500.0,0.00019726,2]
[320305884,1711281076973,-500.0,0.00019726,2]
[320305885,1711281076982,-4270.65,0.00019726,2]
[320305886,1711281076991,-504.87239169,0.00019726,2]
[320305887,1711281077000,-500.0,0.00019726,2]
[320305888,1711281077009,-504.77791668,0.00019726,2]
[320305889,1711281077018,-890.03,0.00019726,2]
[320305890,1711281077027,-504.65473596,0.00019726,2]
[320305891,1711281077036,-500.0,0.00019726,2]
[320305892,1711281077046,-500.0,0.00019726,2]
[320305893,1711281077055,-500.0,0.00019726,2]
[320305894,1711281077064,-1093.98,0.00019726,2]
[320305895,1711281077073,-704.4,0.00019726,2]
[320305896,1711281077082,-1045.21,0.00019726,2]
[320305897,1711281077091,-500.0,0.00019726,2]
[320305898,1711281077101,-500.0,0.00019726,2]
[320305899,1711281077110,-1886.76,0.00019726,2]
[320305900,1711281077119,-2422.71,0.00019726,2]
[320305901,1711281077128,-505.12467671,0.00019726,2]
[320305902,1711281077138,-500.0,0.00019726,2]
[320305903,1711281077147,-500.0,0.00019726,2]
[320305904,1711281077156,-248.46851044,0.00019726,2]
[320305905,1711281077165,-500.0,0.00019726,2]
[320305906,1711281077175,-2554.02,0.00019726,2]
[320305907,1711281077185,-1241.41,0.00019726,2]
[320305908,1711281077194,-500.0,0.00019726,2]
[320305909,1711281077203,-2001.46,0.00019726,2]
[320305910,1711281077212,-500.0,0.00019726,2]
[320305911,1711281077222,-505.70013516,0.00019726,2]
[320305912,1711281077231,-500.0,0.00019726,2]
[320305913,1711281077240,-500.0,0.00019726,2]
[320305914,1711281077249,-13247.69,0.00019726,2]
[320305915,1711281077258,-500.0,0.00019726,2]
[320305916,1711281077267,-254.4028866,0.00019726,2]
[320305917,1711281077276,-500.0,0.00019726,2]
[320305918,1711281077285,-500.0,0.00019726,2]
[320305919,1711281077295,-503.26037397,0.00019726,2]
[320305920,1711281077304,-500.0,0.00019726,2]
[320305921,1711281077313,-500.0,0.00019726,2]
[320305922,1711281077322,-500.0,0.00019726,2]
[320305923,1711281077332,-1801.64,0.00019726,2]
[320305924,1711281077341,-877.87,0.00019726,2]
[320305925,1711281077354,-500.0,0.00019726,2]
[320305926,1711281077363,-500.0,0.00019726,2]
[320305927,1711281077373,-500.0,0.00019726,2]
[320305928,1711281077382,-506.49648171,0.00019726,2]
[320305929,1711281077392,-500.0,0.00019726,2]
[320305930,1711281077401,-500.0,0.00019726,2]
[320305931,1711281077411,-500.0,0.00019726,2]
[320305932,1711281077420,-1483.4,0.00019726,2]
[320305933,1711281077429,-500.0,0.00019726,2]
[320305934,1711281077440,-500.0,0.00019726,2]
[320305935,1711281077451,-1617.22,0.00019726,2]
[320305936,1711281077460,-506.08819954,0.00019726,2]
[320305937,1711281077470,-500.0,0.00019726,2]
[320305938,1711281077481,-500.0,0.00019726,2]
[320305939,1711281077490,-1660.56,0.00019726,2]
[320305940,1711281077500,-500.0,0.00019726,2]
[320305941,1711281077509,-500.0,0.00019726,2]
[320305942,1711281077518,-500.0,0.00019726,2]
[320305943,1711281077528,-532.7,0.00019726,2]
[320305944,1711281077537,-500.0,0.00019726,2]
[320305945,1711281077546,-500.0,0.00019726,2]
[320305946,1711281077555,-1178.32,0.00019726,2]
[320305947,1711281077565,-200.0,0.00019727,2]
[320305948,1711281077574,-150.0,0.0001973,4]
[320305949,1711281077584,-250.94761578,0.00019731,4]
[320305950,1711281077594,-150.0,0.00019736,4]
[320305951,1711281077603,-2658.76555563,0.00019751,2]
[320305952,1711281077613,-250.94761578,0.00019751,4]
[320305953,1711281077622,-150.0,0.00019757,4]
[320305954,1711281077632,-150.0,0.00019769,4]
[320305955,1711281077642,-250.94761578,0.00019771,4]
[320305956,1711281077651,-150.0,0.00019782,4]
[320305957,1711281077661,-150.0,0.00019784,4]
[320305958,1711281077671,-250.94761578,0.00019791,4]
[320305959,1711281077680,-300.0,0.000198,2]
[320305960,1711281077691,-150.0,0.00019803,4]
[320305961,1711281077700,-300.0,0.00019806,2]
[320305962,1711281077709,-1400.0,0.00019806,2]
[320305963,1711281077718,-150.0,0.00019811,4]
[320305964,1711281077727,-250.94761578,0.00019811,4]
[320305965,1711281077737,-167.17411522,0.00019818,2]
[320305966,1711281077747,-150.0,0.00019819,4]
[320305967,1711281077758,-2658.76555563,0.00019825,2]
[320305968,1711281077768,-250.94761578,0.00019831,4]
[320305969,1711281077777,-150.0,0.00019837,4]
[320305970,1711281077787,-150.0,0.00019838,4]
[320305971,1711281077796,-250.94761578,0.00019852,4]
[320305972,1711281077806,-331.58,0.00019855,2]
[320305973,1711281077816,-150.0,0.00019865,4]
[320305974,1711281077826,-150.0,0.00019871,4]
[320305975,1711281077836,-250.94761578,0.00019872,4]
[320305976,1711281077846,-5000.0,0.00019875,2]
[320305977,1711281077856,-150.0,0.00019877,4]
[320305978,1711281077865,-217.22354331,0.00019886,2]
[320305979,1711281077875,-580.64460198,0.00019886,2]
[320305980,1711281077885,-28078.06314353,0.00019888,2]
[320305981,1711281078335,-150.0,0.00019264,2]
[320305982,1711281078346,-150.0,0.00019396,2]
[320305983,1711281078356,-2497.10889228,0.00019888,2]
[320305984,1711281078385,-150.0,0.00019314,2]
[320305985,1711281078396,-150.0,0.0001933,2]
[320305986,1711281078407,-101.13817731,0.00019888,2]
[320305987,1711281088593,-549.0093815,0.00018583,2]
[320305988,1711281088603,-227.77830861,0.00018999,2]
[320305989,1711281088613,-4297.54057393,0.00018999,2]
[320305990,1711281088622,-247.85891227,0.00019,2]
[320305991,1711281088632,-247.85891227,0.00019,2]
[320305992,1711281088641,-247.85891227,0.00019,2]
[320305993,1711281088650,-500.0,0.00019178,2]
[320305994,1711281088660,-15416.5,0.00019178,2]
[320305995,1711281088670,-500.0,0.00019178,2]
[320305996,1711281088679,-500.0,0.00019178,2]
[320305997,1711281088689,-500.0,0.00019178,2]
[320305998,1711281088699,-150.0,0.00019192,2]
[320305999,1711281088708,-150.0,0.0001921,2]
[320306000,1711281088717,-150.0,0.00019236,2]
[320306001,1711281088726,-150.0,0.00019269,2]
[320306002,1711281088736,-150.0,0.00019286,2]
[320306003,1711281088746,-150.0,0.00019295,2]
[320306004,1711281088755,-150.0,0.00019307,2]
[320306005,1711281088765,-150.0,0.00019325,2]
[320306006,1711281088775,-150.0,0.00019337,2]
[320306007,1711281088784,-150.0,0.00019349,2]
[320306008,1711281088794,-150.0,0.00019358,2]
[320306009,1711281088803,-150.0,0.00019376,2]
[320306010,1711281088812,-150.0,0.00019423,2]
[320306011,1711281088821,-150.0,0.00019433,2]
[320306012,1711281088831,-150.0,0.00019448,2]
[320306013,1711281088840,-500.0,0.00019452,2]
[320306014,1711281088849,-15416.5,0.00019452,2]
[320306015,1711281088858,-500.0,0.00019452,2]
[320306016,1711281088868,-500.0,0.00019452,2]
[320306017,1711281088878,-500.0,0.00019726,2]
[320306018,1711281088886,-15416.5,0.00019726,2]
[320306019,1711281088894,-500.0,0.00019726,2]
[320306020,1711281088904,-500.0,0.00019726,2]
[320306021,1711281088913,-593692.53950962,0.00019888,2]
[320306022,1711281089412,-1013.23,0.00019888,2]
[320306029,1711281316958,1004.2196904,0.0002551,120]
[320306030,1711281357414,160.41,0.00013699,2]
[320306032,1711281363327,3494.84,0.00017073,2]
[320306033,1711281416030,2000.0,0.00016938,2]
[320306034,1711281417764,250.0,0.00016938,2]
[320306035,1711281485779,358.5,0.00014986,2]
[320306036,1711281571986,180.14,0.00016853,2]
[320306038,1711281586627,2008.65057393,0.00016872,2]
[320306039,1711281586652,1091.59942607,0.00016872,2]
[320306040,1711281630985,1379.24,0.00016996,2]
[320306041,1711281635154,200.0,0.00016861,2]
[320306042,1711281645601,5781.70114786,0.00016861,2]
[320306043,1711281645628,3452.54057393,0.00016861,2]
[320306044,1711281645652,3452.54057393,0.00016861,2]
[320306045,1711281646560,-352.54057393,0.00016861,2]
[320306047,1711281926733,340.57,0.00015072,2]
[320306049,1711282174373,-2081.855,0.00016199,2]
[320306075,1711282232055,-452.75892829,0.00016199,2]
[320306076,1711282232066,-1762.92664564,0.00016199,2]
[320306077,1711282232075,-150.0,0.000162,2]
[320306078,1711282232085,-150.0,0.000162,2]
[320306079,1711282232094,-150.0,0.000162,2]
[320306080,1711282232104,-150.0,0.000162,2]
[320306081,1711282232113,-150.0,0.000162,2]
[320306082,1711282232122,-150.0,0.000162,2]
[320306083,1711282232132,-150.0,0.000162,2]
[320306084,1711282232141,-150.0,0.000162,2]
[320306085,1711282232151,-155.01870001,0.000162,2]
[320306086,1711282232160,-150.0,0.00016457,2]
[320306087,1711282232169,-5963.21,0.00016681,2]
[320306088,1711282232179,-250.0,0.00016694,2]
[320306089,1711282232188,-150.0,0.00016714,2]
[320306090,1711282232197,-150.0,0.00016736,2]
[320306091,1711282232207,-176.61905622,0.00016761,2]
[320306092,1711282232216,-150.0,0.000168,2]
[320306093,1711282232226,-250.0,0.0001687,2]
[320306094,1711282232235,-443.73,0.0001687,2]
[320306095,1711282232244,-850.26,0.0001687,2]
[320306096,1711282232253,-255.74,0.00016962,2]
[320306097,1711282232262,-150.0,0.00016971,2]
[320306098,1711282232271,-182.45,0.00016976,2]
[320306099,1711282232281,-2066.5,0.0001699,2]
[320306100,1711282232290,-151.89,0.00017095,2]
[320306101,1711282232298,-150.0,0.000171,2]
[320306102,1711282232307,-150.0,0.000171,2]
[320306103,1711282232317,-151.89,0.00017169,2]
[320306104,1711282232326,-150.0,0.00017229,2]
[320306105,1711282232335,-151.89,0.00017244,2]
[320306106,1711282232344,-880.0,0.00017308,2]
[320306107,1711282232354,-151.89,0.00017318,2]
[320306108,1711282232363,-176.61905621,0.00017331,2]
[320306109,1711282232372,-340.57,0.00017336,2]
[320306110,1711282232382,-165.6,0.00017342,2]
[320306111,1711282232611,-151.89,0.00017392,2]
[320306112,1711282232620,-150.0,0.000174,2]
[320306113,1711282232630,-151.89,0.00017466,2]
[320306114,1711282232641,-150.0,0.00017486,2]
[320306115,1711282232652,-499.99,0.00017494,2]
[320306116,1711282232661,-1319.42654192,0.000175,2]
[320306117,1711282232684,-605.87000025,0.000175,2]
[320306118,1711282232697,-6812.98456183,0.000175,2]
[320306119,1711282232710,-177.84,0.00017528,2]
[320306120,1711282232719,-151.89,0.00017541,2]
[320306121,1711282232730,-6156.64,0.00017555,2]
[320306122,1711282232739,-151.89,0.00017615,2]
[320306123,1711282232748,-180.31,0.00017644,2]
[320306124,1711282232759,-151.89,0.00017689,2]
[320306125,1711282232768,-150.0,0.00017743,2]
[320306126,1711282232779,-2201.32860966,0.00017749,2]
[320306127,1711282232789,-3360.08711852,0.00017751,2]
[320306128,1711282232798,-187.82140894,0.00017752,2]
[320306129,1711282232807,-187.4,0.00017763,2]
[320306130,1711282232818,-151.89,0.00017763,2]
[320306131,1711282232827,-155.0,0.00017835,2]
[320306132,1711282232837,-155.0,0.00017835,2]
[320306133,1711282232846,-158.0,0.00017835,2]
[320306134,1711282232855,-151.89,0.00017838,2]
[320306135,1711282232865,-1447.88575785,0.000179,2]
[320306136,1711282232874,-176.61905621,0.000179,2]
[320306137,1711282232883,-633.22998978,0.000179,2]
[320306138,1711282232892,-366.87454956,0.000179,2]
[320306139,1711282232901,-217.22354331,0.000179,2]
[320306140,1711282232911,-151.89,0.00017912,2]
[320306141,1711282232920,-151.89,0.00017986,2]
[320306142,1711282232930,-12779.70384812,0.00017989,2]
[320306143,1711282232941,-3868.128,0.00017989,2]
[320306144,1711282232950,-155.63930771,0.00017998,2]
[320306145,1711282232962,-613.57766575,0.00017998,2]
[320306146,1711282232971,-1473.991781,0.00017998,2]
[320306147,1711282232979,-23054.76128051,0.00017999,2]
[320306148,1711282232988,-3042.83965191,0.00017999,3]
[320306149,1711282232998,-204.73807936,0.00018,2]
[320306150,1711282233012,-264.98809857,0.00018,2]
[320306151,1711282233022,-270.57239744,0.00018,2]
[320306152,1711282233031,-178.0565071,0.00018,2]
[320306153,1711282233041,-579653.99187349,0.00018,2]
[320306154,1711282233056,-377.37407098,0.00018,2]
[320306155,1711282233069,-34453.59739215,0.00018,2]
[320306156,1711282233080,-984.53450096,0.00018,2]
[320306157,1711282233116,-7650.55102826,0.00018,2]
[320306158,1711282233127,-7082.99619569,0.00018,2]
[320306159,1711282233139,-2956.44928087,0.00018,2]
[320306160,1711282233155,-607671.80853091,0.00018,2]
[320306161,1711282233166,-798.12958754,0.00018,2]
[320306162,1711282233179,-4314.11941,0.00018,2]
[320306163,1711282233212,-944.29932622,0.00018,2]
[320306164,1711282233224,-7031.59422298,0.00018,2]
[320306183,1711282238220,-9593.36908819,0.00018,2]
[320306184,1711282238333,-526.2407244,0.00018,2]
[320306185,1711282238348,-859834.3239252,0.00018,2]
[320306186,1711282238360,-19393.69500477,0.00018,2]
[320306187,1711282238371,-914635.21176889,0.00018,2]
[320306189,1711282238397,-136307.59908108,0.00018,2]
[320306246,1711282240192,-1190.950334,0.00018,2]
[320306247,1711282240253,-877.9288756,0.00018,2]
[320306248,1711282240270,-1308.415,0.00018,2]
[320306249,1711282240283,-510.03229468,0.00018,2]
[320306403,1711282243105,-13033.0831,0.000179,2]
[320306405,1711282243115,-727745.51126033,0.00018,2]
[320306407,1711282243124,-51188.60439616,0.00018,2]
[320306409,1711282243133,-1447.88575774,0.00018082,2]
[320306411,1711282243143,-1645.54769525,0.000181,2]
[320306413,1711282243152,-1947.92761866,0.00018135,2]
[320306415,1711282243161,-163.84,0.00018235,2]
[320306417,1711282243170,-157.29,0.0001826,2]
[320306419,1711282243179,-1447.88575774,0.00018264,2]